bitfinex-derivatives/quotes_SOLF0:USTF0_20251107
["timestamp","ask_amount","ask_price","bid_price","bid_amount"]
[1762535928416,3.03,159.48,159.37,2.23]
[1762535928815,3.03,159.48,159.41,5.6493]
[1762535929017,3.03,159.48,159.4,2.23]
[1762535929319,0.04593186,159.46,159.42,0.04229969]
[1762535930220,0.04593186,159.46,159.42,2.27229969]
[1762535931020,8.9422797,159.56,159.42,2.27229969]
[1762535931214,3.03,159.53,159.42,7.8787]
[1762535932111,0.04157246,159.49,159.46,2.27051524]
[1762535932419,0.04023074,159.49,159.46,2.27530514]
[1762535933015,0.04023074,159.49,159.46,0.04530514]
[1762535933320,3.07023074,159.49,159.46,0.04530514]
[1762535933722,3.03,159.48,159.37,2.23]
[1762535933907,5.6483,159.45,159.37,2.23]
[1762535934313,8.6783,159.45,159.37,2.23]
[1762535934817,0.04251513,159.43,159.39,0.04451448]
[1762535935414,8.72121513,159.43,159.39,0.04451448]
[1762535936020,3.07251513,159.43,159.39,0.04451448]
[1762535936415,0.04251513,159.43,159.39,0.04451448]
[1762535936617,0.04251513,159.43,159.39,2.27451448]
[1762535939727,0.04251513,159.43,159.4,2.23]
[1762535940515,0.04251513,159.43,159.41,2.23]
[1762535940927,3.07251513,159.43,159.39,0.04451448]
[1762535941428,0.04251513,159.43,159.39,2.27451448]
[1762535941630,3.07251513,159.43,159.39,0.04451448]
[1762535942131,0.04251513,159.43,159.39,2.27451448]
[1762535942835,3.04,159.55,159.43,2.23]
[1762535943927,3.08328513,159.51,159.47,0.04509776]
[1762535944140,5.9122797,159.49,159.32,21.08788923]
[1762535944331,3.04,159.48,159.35,2.23]
[1762535944731,5.82735461,159.54,159.35,2.23]
[1762535944732,8.6889,159.43,159.35,2.23]
[1762535945033,3.04,159.42,159.31,2.23]
[1762535945230,3.04,159.42,159.35,0.04575498]
[1762535945231,0.04577631,159.38,159.35,0.04575498]
[1762535946134,8.73647631,159.38,159.35,0.04575498]
[1762535946334,3.04,159.37,159.35,0.04575498]
[1762535946641,5.6516,159.35,159.27,67.6541]
[1762535946938,3.04,159.39,159.26,2.23]
[1762535947332,3.04,159.39,159.26,8.1422797]
[1762535947534,3.04,159.39,159.27,2.23]
[1762535947729,0.04236911,159.34,159.32,5.6523]
[1762535947943,0.04236911,159.34,159.32,7.8823]
[1762535948438,3.04,159.43,159.35,5.6513]
[1762535949138,8.6888,159.43,159.35,5.6513]
[1762535949339,3.04,159.43,159.35,5.6513]
[1762535949646,3.08451724,159.41,159.37,0.04433598]
[1762535950334,3.04,159.38,159.37,0.04433598]
[1762535950539,3.04,159.38,159.29,5.6536]
[1762535950934,8.6917,159.35,159.27,5.6542]
[1762535951343,3.04,159.35,159.25,5.655]
[1762535951547,3.04,159.31,159.28,0.04483893]
[1762535951744,0.04436737,159.31,159.28,0.04752073]
[1762535951939,3.04,159.3,159.19,2.23]
[1762535952444,8.6935,159.3,159.19,2.23]
[1762535952834,0.04463162,159.26,159.23,0.04261171]
[1762535953041,3.04,159.34,159.23,2.27261171]
[1762535953244,3.04,159.34,159.23,2.23]
[1762535953444,3.04,159.34,159.26,2.23]
[1762535953647,3.04,159.38,159.26,2.23]
[1762535954040,3.04,159.33,159.3,0.0480344]
[1762535954343,0.04497495,159.34,159.3,2.2780344]
[1762535954748,0.04497495,159.34,159.3,0.0480344]
[1762535955145,3.08497495,159.34,159.3,0.0480344]
[1762535955649,8.73707495,159.34,159.3,0.0480344]
[1762535955841,3.04,159.33,159.3,0.0480344]
[1762535956046,3.04,159.33,159.22,2.23]
[1762535956241,8.6932,159.31,159.22,2.23]
[1762535956440,8.6932,159.31,159.22,62.0]
[1762535956441,3.04,159.31,159.22,62.0]
[1762535956752,3.04,159.36,159.29,5.6536]
[1762535957144,3.08746164,159.34,159.31,0.04328408]
[1762535957850,3.04,159.33,159.31,0.04328408]
[1762535958547,3.04,159.32,159.22,64.23]
[1762535958754,3.04,159.31,159.22,2.23]
[1762535958944,3.04,159.31,159.17,2.23]
[1762535959145,5.9122797,159.32,159.17,2.23]
[1762535959146,3.04,159.27,159.19,5.6569]
[1762535959853,0.04417155,159.25,159.21,0.04490662]
[1762535960147,3.08417155,159.25,159.21,0.04490662]
[1762535960743,3.04,159.23,159.21,0.04490662]
[1762535961149,0.04417155,159.25,159.21,0.04490662]
[1762535961456,3.08417155,159.25,159.21,0.04490662]
[1762535962947,0.04417155,159.25,159.21,0.04490662]
[1762535963249,3.08417155,159.25,159.21,0.04490662]
[1762535964157,0.04417155,159.25,159.21,2.27490662]
[1762535964551,0.04417155,159.25,159.21,0.04490662]
[1762535964951,3.08417155,159.25,159.21,0.04490662]
[1762535965355,3.08417155,159.25,159.06,11.3232]
[1762535965356,3.04,159.24,159.13,2.23]
[1762535965651,5.6559,159.23,159.13,2.23]
[1762535965959,3.04,159.24,159.13,2.23]
[1762535966254,3.04,159.24,159.15,2.23]
[1762535966556,0.04526956,159.21,159.18,0.04119411]
[1762535966945,0.04526956,159.21,159.18,2.27119411]
[1762535967953,0.04526956,159.21,159.18,7.92849411]
[1762535968155,0.04526956,159.21,159.18,0.04119411]
[1762535968757,0.04526956,159.21,159.18,2.27119411]
[1762535969659,0.04526956,159.21,159.2,2.23]
[1762535969847,0.04526956,159.21,159.19,5.657]
[1762535970054,0.04526956,159.21,159.19,7.887]
[1762535970950,0.04526956,159.21,159.18,2.27119411]
[1762535971358,3.04,159.31,159.2,2.23]
[1762535971856,3.04,159.31,159.21,5.6563]
[1762535972059,3.04,159.3,159.2,2.23]
[1762535972461,0.04082185,159.27,159.23,0.0482672]
[1762535972759,2.92082185,159.27,159.23,0.0482672]
[1762535972958,0.04082185,159.27,159.23,2.2882672]
[1762535973155,2.88,159.39,159.31,5.6529]
[1762535973361,2.88,159.39,159.32,5.9122797]
[1762535974161,2.92315562,159.37,159.34,0.04107803]
[1762535974365,2.91988474,159.37,159.34,0.04676887]
[1762535975857,0.03988474,159.37,159.34,0.04676887]
[1762535977060,2.91988474,159.37,159.34,0.04676887]
[1762535977260,0.03988474,159.37,159.34,0.04676887]
[1762535977468,2.91988474,159.37,159.34,0.04676887]
[1762535978064,2.88,159.36,159.34,0.04676887]
[1762535979675,2.91988474,159.37,159.34,0.04676887]
[1762535981661,8.57078474,159.37,159.34,0.04676887]
[1762535981971,8.57078474,159.37,159.26,2.24]
[1762535981972,3.11,159.36,159.26,2.24]
[1762535982377,3.11,159.36,159.27,2.24]
[1762535982763,0.04052206,159.33,159.3,0.04167868]
[1762535983571,3.15052206,159.33,159.3,0.04167868]
[1762535983774,3.15052206,159.33,159.23,2.24]
[1762535983970,3.11,159.33,159.19,2.24]
[1762535984276,3.11,159.29,159.19,2.24]
[1762535984473,3.11,159.29,159.13,9.05213571]
[1762535984670,3.11,159.29,159.14,2.24]
[1762535985073,3.14999291,159.23,159.2,0.0452523]
[1762535985272,3.15290522,159.23,159.2,0.04552046]
[1762535985473,3.15290522,159.23,159.14,2.24]
[1762535985675,3.15290522,159.23,159.07,19.28039667]
[1762535985676,3.11,159.22,159.11,5.6597]
[1762535985870,3.11,159.22,159.11,7.8997]
[1762535986175,3.11,159.21,159.05,9.05213571]
[1762535986372,3.11,159.19,158.95,97.18553571]
[1762535986568,3.11,159.14,159.02,2.24]
[1762535986779,3.11,159.14,159.05,0.04641287]
[1762535986780,0.04419331,159.09,159.05,0.04641287]
[1762535987378,0.04419331,159.09,159.05,2.28641287]
[1762535988077,3.11,159.18,159.08,2.24]
[1762535988984,3.1578285,159.15,159.11,0.04596417]
[1762535989186,3.1508697,159.15,159.11,0.04030019]
[1762535990784,0.0408697,159.15,159.11,2.28030019]
[1762535990984,0.0408697,159.15,159.12,5.6596]
[1762535991381,0.0408697,159.15,159.13,7.899]
[1762535991588,0.0408697,159.15,159.11,0.04030019]
[1762535991790,0.0408697,159.15,159.11,2.28030019]
[1762535992588,3.11,159.24,159.11,2.28030019]
[1762535992783,3.11,159.29,159.21,5.6562]
[1762535993285,3.11,159.29,159.18,2.24]
[1762535993590,3.15361961,159.25,159.22,0.04730253]
[1762535994387,3.15361961,159.25,159.07,2.24]
[1762535994584,8.7654,159.24,159.14,5.6586]
[1762535994779,3.11,159.23,159.14,5.6586]
[1762535994975,3.11,159.23,159.12,2.24]
[1762535995185,0.04033904,159.19,159.16,0.04115802]
[1762535996988,3.15033904,159.19,159.16,0.04115802]
[1762535997587,3.15033904,159.19,159.06,2.24]
[1762535997794,3.11,159.19,159.06,2.24]
[1762535998086,3.11,159.19,159.07,2.24]
[1762535998687,0.04424904,159.15,159.11,0.04544023]
[1762535998887,0.04424904,159.15,159.11,62.04544023]
[1762535999490,3.15424904,159.15,159.11,0.04544023]
[1762536000689,0.04424904,159.15,159.11,0.04544023]
[1762536001302,0.04424904,159.15,159.11,5.70514023]
[1762536001491,0.04424904,159.15,159.11,7.94514023]
[1762536001889,0.04424904,159.15,159.11,0.04544023]
[1762536001890,3.15424904,159.15,159.11,0.04544023]
[1762536002492,0.04424904,159.15,159.11,2.27544023]
[1762536002692,0.04424904,159.15,159.12,2.23]
[1762536003002,0.04424904,159.15,159.11,0.04544023]
[1762536003194,0.04424904,159.15,159.11,5.70534023]
[1762536003591,0.04424904,159.15,159.11,0.04544023]
[1762536003796,2.93424904,159.15,159.11,0.04544023]
[1762536004003,2.93424904,159.15,159.03,2.23]
[1762536004306,2.89,159.15,159.03,2.23]
[1762536004894,2.89,159.15,159.07,0.04758511]
[1762536004895,0.04812147,159.11,159.07,0.04758511]
[1762536005196,0.04812147,159.11,159.07,2.27758511]
[1762536005401,0.04812147,159.11,159.08,5.6608]
[1762536005803,0.04812147,159.11,159.07,2.27758511]
[1762536006004,2.93812147,159.11,159.07,0.04758511]
[1762536006507,0.04812147,159.11,159.07,7.93878511]
[1762536006699,0.04812147,159.11,159.07,2.27758511]
[1762536006897,0.04812147,159.11,159.07,64.27758511]
[1762536007099,2.93812147,159.11,159.07,62.04758511]
[1762536007405,0.04812147,159.11,159.08,2.23]
[1762536007808,0.04812147,159.11,159.1,2.23]
[1762536008510,2.89,159.19,159.1,2.23]
[1762536008914,2.89,159.19,159.16,5.658]
[1762536009309,2.89,159.23,159.16,5.658]
[1762536009503,0.04810247,159.21,159.18,2.27056483]
[1762536009704,2.89,159.28,159.18,2.23]
[1762536009901,2.89,159.28,159.21,0.04183768]
[1762536010206,2.93553826,159.25,159.21,0.04183768]
[1762536010508,0.04007748,159.25,159.21,0.04625245]
[1762536010712,2.93007748,159.25,159.21,0.04625245]
[1762536010908,2.93007748,159.25,159.14,2.23]
[1762536011102,2.89,159.19,159.1,2.23]
[1762536011805,8.5477,159.18,159.1,2.23]
[1762536012113,2.9382987,159.16,159.12,0.04669972]
[1762536012309,2.93789574,159.16,159.12,0.04425819]
[1762536013013,2.93789574,159.16,159.07,62.0]
[1762536013206,2.93789574,159.16,159.02,2.23]
[1762536013409,2.89,159.16,159.02,2.23]
[1762536014012,0.04118339,159.11,159.07,0.04450555]
[1762536014208,2.93118339,159.11,159.07,0.04450555]
[1762536015316,0.04118339,159.11,159.07,5.70580555]
[1762536015508,0.04118339,159.11,159.07,0.04450555]
[1762536016405,2.93118339,159.11,159.07,0.04450555]
[1762536018024,2.93118339,159.11,158.97,2.23]
[1762536018210,2.89,159.11,158.97,2.23]
[1762536018709,8.5517,159.07,158.97,2.23]
[1762536018908,2.89,159.07,158.97,2.23]
[1762536019208,0.03976401,159.04,159.01,7.8932]
[1762536019408,0.03976401,159.04,159.02,2.23]
[1762536019818,0.03976401,159.04,159.02,7.8929]
[1762536020016,0.03976401,159.04,159.03,2.23]
[1762536020411,2.89,159.11,159.03,2.23]
[1762536020921,2.89,159.15,159.03,2.23]
[1762536021112,2.89,159.15,158.98,99.4416]
[1762536021113,2.89,159.15,159.05,2.23]
[1762536021510,0.04836679,159.12,159.08,0.04347]
[1762536021716,2.89,159.2,159.08,2.27347]
[1762536021919,2.89,159.24,159.08,2.23]
[1762536022112,2.89,159.23,159.1,2.23]
[1762536022313,5.6563,159.22,159.14,5.6586]
[1762536022512,2.89,159.23,159.1,2.23]
[1762536022713,0.04699144,159.18,159.15,0.04765074]
[1762536022914,2.93699144,159.18,159.15,0.04765074]
[1762536023310,2.93699144,159.18,159.06,2.23]
[1762536023520,2.89,159.18,159.06,2.23]
[1762536023920,2.89,159.18,159.07,2.23]
[1762536024312,0.04636748,159.14,159.07,2.23]
[1762536024519,0.04636748,159.14,159.12,5.6596]
[1762536024924,0.04636748,159.14,159.12,7.8896]
[1762536025218,0.04636748,159.14,159.11,0.04126512]
[1762536026211,0.04636748,159.14,159.11,2.27126512]
[1762536026721,0.04636748,159.14,159.13,2.23]
[1762536027612,0.04636748,159.14,159.12,5.6594]
[1762536027922,0.04636748,159.14,159.12,7.8894]
[1762536028823,0.04636748,159.14,159.11,2.27126512]
[1762536029622,5.78969057,159.23,159.13,2.23]
[1762536029819,4.95071325,159.22,159.13,2.23]
[1762536030017,4.95071325,159.21,159.13,2.23]
[1762536030324,4.95071325,159.2,159.13,2.23]
[1762536030519,2.89,159.24,159.13,2.23]
[1762536030717,0.04520623,159.18,159.16,5.658]
[1762536030917,0.04339499,159.19,159.16,5.658]
[1762536031224,2.93339499,159.19,159.15,0.04229495]
[1762536031424,4.9527085,159.18,159.15,0.04229495]
[1762536031627,2.93339499,159.19,159.15,0.04229495]
[1762536031628,7.84281689,159.17,159.15,0.04229495]
[1762536031925,4.95359709,159.16,159.15,0.04229495]
[1762536032728,0.04339499,159.19,159.15,0.04229495]
[1762536033019,4.95273809,159.18,159.15,0.04229495]
[1762536033217,0.04339499,159.19,159.15,2.28229495]
[1762536035519,0.04339499,159.19,159.17,7.8976]
[1762536036318,5.78969057,159.28,159.18,2.24]
[1762536036527,4.95440513,159.27,159.18,2.24]
[1762536036820,3.1,159.27,159.18,2.24]
[1762536037520,3.1,159.27,159.22,5.6559]
[1762536037521,0.04081722,159.24,159.22,5.6559]
[1762536037726,0.04081722,159.24,159.22,7.8959]
[1762536037925,0.04081722,159.24,159.23,2.24]
[1762536038121,0.04081722,159.24,159.21,0.04343613]
[1762536038528,3.14081722,159.24,159.21,0.04343613]
[1762536038830,3.14081722,159.24,159.13,2.24]
[1762536039027,3.1,159.24,159.13,2.24]
[1762536039322,3.1,159.23,159.16,5.6581]
[1762536039526,3.1,159.23,159.14,62.0]
[1762536039720,3.1,159.21,159.13,2.24]
[1762536039923,0.04113814,159.19,159.15,0.04000717]
[1762536040122,0.04113814,159.19,159.15,2.28000717]
[1762536040522,0.04113814,159.19,159.17,5.6576]
[1762536040922,0.04113814,159.19,159.18,2.23]
[1762536041123,0.04113814,159.19,159.17,7.8876]
[1762536041333,0.04113814,159.19,159.18,2.23]
[1762536041520,8.01289808,159.29,159.21,5.6563]
[1762536041718,3.06,159.29,159.2,2.23]
[1762536042226,5.6526,159.32,159.2,2.23]
[1762536042426,3.06,159.31,159.2,2.23]
[1762536042636,3.10705414,159.27,159.24,0.04797371]
[1762536042829,3.10664822,159.27,159.24,0.04807601]
[1762536044535,3.06,159.26,159.24,0.04807601]
[1762536044728,0.04664822,159.27,159.24,0.04807601]
[1762536045235,3.10664822,159.27,159.24,0.04807601]
[1762536047430,3.06,159.26,159.24,0.04807601]
[1762536048431,0.04664822,159.27,159.24,0.04807601]
[1762536050024,3.10664822,159.27,159.24,0.04807601]
[1762536050228,3.10664822,159.27,159.16,5.6582]
[1762536050536,3.06,159.25,159.15,2.23]
[1762536051140,0.04576881,159.22,159.18,2.27040647]
[1762536051532,0.04576881,159.22,159.19,2.23]
[1762536052135,0.04576881,159.22,159.21,2.23]
[1762536052339,3.06,159.38,159.22,2.23]
[1762536052536,3.06,159.38,159.25,2.23]
[1762536053240,3.06,159.38,159.3,5.7006547]
[1762536053433,0.04298942,159.33,159.3,7.9306547]
[1762536053833,0.04298942,159.33,159.3,0.0477547]
[1762536054037,0.04298942,159.33,159.3,2.2777547]
[1762536054242,3.06,159.42,159.3,2.2777547]
[1762536054438,5.6495,159.41,159.34,5.6515]
[1762536054934,5.6502,159.39,159.32,5.6525]
[1762536055128,0.04661392,159.37,159.34,0.04135504]
[1762536055334,0.04661392,159.37,159.34,2.27135504]
[1762536056937,0.04661392,159.37,159.36,2.23]
[1762536057143,3.06,159.46,159.36,64.23]
[1762536057639,3.06,159.46,159.39,5.6497]
[1762536058141,0.04001028,159.44,159.41,0.04784603]
[1762536058737,0.04001028,159.44,159.41,2.27784603]
[1762536059130,3.06,159.5,159.43,2.23]
[1762536060246,4.90614916,159.54,159.45,2.27007701]
[1762536060247,0.04767883,159.48,159.45,2.27007701]
[1762536060943,0.04767883,159.48,159.45,0.04007701]
[1762536061149,0.04767883,159.48,159.45,2.27007701]
[1762536061443,3.06,159.59,159.46,2.23]
[1762536061745,3.06,159.59,159.5,5.6458]
[1762536062544,0.04309873,159.56,159.53,0.04038958]
[1762536063139,3.12309873,159.56,159.53,0.04038958]
[1762536063335,3.12309873,159.56,159.35,18.72925074]
[1762536063336,8.7251,159.53,159.43,2.23]
[1762536063539,3.08,159.52,159.39,64.23]
[1762536063735,5.856e-05,159.66,159.56,87.7966]
[1762536063935,19.42162044,159.95,159.67,87.7321]
[1762536064139,90.36,159.97,159.63,87.7553]
[1762536064140,5.91934666,159.92,159.73,5.91934666]
[1762536064349,0.04741511,159.84,159.81,0.04531732]
[1762536064549,5.91934666,159.92,159.73,5.91934666]
[1762536064845,5.6307,159.94,159.73,5.91934666]
[1762536065141,96.27934666,159.97,159.78,5.91934666]
[1762536065547,0.04379626,159.89,159.86,0.04132419]
[1762536065735,0.04460905,159.89,159.86,0.04793155]
[1762536065935,0.04460905,159.89,159.86,5.96727821]
[1762536066340,0.04460905,159.89,159.86,0.04793155]
[1762536066645,3.08,159.98,159.86,5.96727821]
[1762536066948,3.08,160.03,159.89,5.91934666]
[1762536067445,3.08,160.03,159.89,5.91934666]
[1762536067644,3.11997442,159.98,159.94,0.03976284]
[1762536067839,3.11997442,159.98,159.89,5.91934666]
[1762536068253,3.11997442,159.98,159.84,5.91934666]
[1762536068549,3.08,160.03,159.88,5.91934666]
[1762536068742,3.08,160.03,159.92,5.91934666]
[1762536068941,1.5496779,160.16,160.0,5.91934666]
[1762536068942,3.08,160.08,160.0,5.91934666]
[1762536069138,3.08,160.08,159.95,5.91934666]
[1762536069346,5.6249,160.11,159.96,5.6299]
[1762536069647,3.08,160.1,159.96,5.6299]
[1762536069839,3.08,160.1,159.98,5.6289]
[1762536070041,0.04119055,160.06,160.02,0.04026331]
[1762536070549,0.04119055,160.06,160.03,62.0]
[1762536070751,0.00119055,160.06,160.03,62.0]
[1762536071046,11.54114666,160.2,160.03,62.0]
[1762536071344,87.4477,160.2,160.03,62.0]
[1762536071548,5.91934666,160.15,159.95,5.91934666]
[1762536071747,5.91934666,160.1,159.85,87.6357]
[1762536071938,5.91934666,160.1,159.87,5.91934666]
[1762536071939,5.91934666,160.06,159.87,5.91934666]
[1762536072138,0.04299944,159.98,159.95,0.04257158]
[1762536072342,5.91934666,160.02,159.8,5.91934666]
[1762536072652,0.04067106,159.93,159.89,0.04199992]
[1762536072944,5.91934666,160.04,159.89,0.04643722]
[1762536073138,8.99934666,160.04,159.86,5.91934666]
[1762536073338,8.99934666,160.04,159.86,11.55254666]
[1762536073740,3.08,160.03,159.86,11.55254666]
[1762536073940,3.08,160.03,159.76,177.9025]
[1762536073941,3.08,160.03,159.83,5.91934666]
[1762536074149,0.04778314,159.96,159.93,0.04520589]
[1762536074344,3.08,159.99,159.83,5.91934666]
[1762536074555,0.04566779,159.91,159.88,0.04370042]
[1762536074744,0.04270038,159.91,159.88,0.04786722]
[1762536077144,0.04270038,159.91,159.77,5.91934666]
[1762536077440,3.08,159.97,159.85,5.91934666]
[1762536078049,0.04660319,159.93,159.89,0.04434705]
[1762536079043,90.14,160.04,159.9,5.91934666]
[1762536079349,3.08,160.11,159.98,5.91934666]
[1762536079754,3.08,160.08,159.94,5.91934666]
[1762536080051,3.08,160.07,159.99,0.0439355]
[1762536080255,3.08,160.07,159.83,68.48]
[1762536080256,3.08,160.06,159.89,5.91934666]
[1762536080555,5.366e-05,160.49,160.25,87.416]
[1762536080753,0.03935923,160.39,160.22,5.6207]
[1762536080950,5.91934666,160.42,160.22,5.91934666]
[1762536081142,87.29165366,160.49,160.22,5.91934666]
[1762536081341,5.6127,160.46,160.26,5.91934666]
[1762536081545,5.91940032,160.49,160.28,5.91934666]
[1762536081749,5.366e-05,160.49,160.36,5.91934666]
[1762536081951,0.04096451,160.44,160.41,0.04083148]
[1762536082143,0.04096451,160.44,160.34,5.91934666]
[1762536082348,5.366e-05,160.49,160.35,15.01940068]
[1762536082749,5.366e-05,160.49,160.3,15.01940068]
[1762536082954,3.08,160.44,160.3,15.01940068]
[1762536083155,3.12552099,160.39,160.35,0.04238662]
[1762536083448,3.08,160.38,160.31,62.0]
[1762536084043,4.32,160.37,160.25,15.01940068]
[1762536084253,3.08,160.32,160.29,0.0415726]
[1762536084446,3.08,160.31,160.16,15.01940068]
[1762536084647,3.08,160.31,160.14,15.01940068]
[1762536084853,3.08,160.31,160.19,15.01940068]
[1762536085052,3.08,160.3,160.19,15.01940068]
[1762536085448,3.08,160.3,160.23,0.04469893]
[1762536085647,0.04194293,160.26,160.19,15.01940068]
[1762536086051,1.28194293,160.26,160.14,15.01940068]
[1762536086251,3.08,160.3,160.14,15.01940068]
[1762536086544,0.03960455,160.24,160.2,0.0453503]
[1762536086757,0.04496471,160.24,160.2,0.03965593]
[1762536087458,1.28496471,160.24,160.2,0.03965593]
[1762536087758,1.24,160.23,160.13,15.01940068]
[1762536088053,3.08,160.41,160.18,15.01940068]
[1762536088252,87.3028,160.47,160.23,15.01940068]
[1762536088253,3.08,160.39,160.23,15.01940068]
[1762536088553,3.08,160.39,160.28,15.01940068]
[1762536088850,0.04478808,160.33,160.29,0.04147704]
[1762536089050,0.04478808,160.33,160.29,0.04632685]
[1762536090950,3.12478808,160.33,160.29,0.04632685]
[1762536091151,0.04478808,160.33,160.29,0.04632685]
[1762536091452,3.08,160.31,160.2,15.01940068]
[1762536091659,3.08,160.31,160.06,87.5213]
[1762536091660,3.08,160.3,160.16,15.01940068]
[1762536091860,3.08,160.29,160.1,15.01940068]
[1762536092060,3.09,160.26,160.1,15.01940068]
[1762536092560,3.13009911,160.2,160.16,0.04571538]
[1762536092855,3.13214917,160.2,160.16,0.04110668]
[1762536093062,4.33,160.19,160.05,15.01940068]
[1762536093249,3.09,160.19,160.02,15.01940068]
[1762536093754,3.09,160.19,160.04,5.6269]
[1762536094249,0.04489288,160.13,160.1,0.04494411]
[1762536094648,1.24,160.12,160.1,0.04494411]
[1762536094854,1.24,160.11,159.98,15.01940068]
[1762536095049,3.09,160.12,159.98,15.01940068]
[1762536095753,3.09,160.12,159.99,5.6286]
[1762536096254,0.03955725,160.07,160.04,0.03190552]
[1762536098555,3.12955725,160.07,160.04,0.03190552]
[1762536098962,4.33,160.06,159.93,15.01940068]
[1762536099260,3.09,160.06,159.93,15.01940068]
[1762536100060,15.01945434,160.49,160.21,0.4]
[1762536100359,15.01945434,160.49,160.26,15.01940068]
[1762536100555,15.01945434,160.49,160.26,15.39940068]
[1762536100756,5.366e-05,160.49,160.26,15.39940068]
[1762536100957,5.6153,160.38,160.2,5.6212]
[1762536101165,15.01940068,160.41,160.19,0.38]
[1762536101860,98.51365366,160.49,160.21,0.43]
[1762536101861,15.01940068,160.46,160.21,0.43]
[1762536102059,0.04243314,160.35,160.26,0.43]
[1762536102363,3.13,160.41,160.26,0.43]
[1762536102757,5.366e-05,160.49,160.27,0.43]
[1762536103257,3.13005366,160.49,160.37,5.6154]
[1762536103451,0.04800083,160.45,160.41,0.04204022]
[1762536107957,0.04800083,160.45,160.43,0.43]
[1762536108163,5.366e-05,160.49,160.43,0.43]
[1762536108467,5.366e-05,160.49,160.43,6.0433]
[1762536108666,5.366e-05,160.49,160.38,0.43]
[1762536109262,0.04293901,160.45,160.42,0.04298105]
[1762536109463,0.04293901,160.45,160.32,6.047]
[1762536109464,3.17293901,160.45,160.32,6.047]
[1762536109767,3.13,160.45,160.32,0.43]
[1762536109964,3.13,160.45,160.23,5.6203]
[1762536110159,3.13,160.39,160.21,0.43]
[1762536110559,3.13,160.39,160.28,0.04800718]
[1762536110560,0.04514685,160.32,160.28,0.04800718]
[1762536110756,0.04338674,160.32,160.28,0.04151689]
[1762536111163,0.04338674,160.32,160.28,0.47151689]
[1762536111663,280.92342044,160.72,160.29,0.39]
[1762536111664,3.13,160.45,160.29,0.39]
[1762536112064,3.13,160.42,160.26,67.6192]
[1762536112263,3.13,160.42,160.24,0.39]
[1762536112665,3.13,160.34,160.31,0.04322882]
[1762536112864,3.17383622,160.34,160.18,0.39]
[1762536113164,3.13,160.34,160.18,0.39]
[1762536113666,3.13,160.34,160.2,6.0114]
[1762536113967,0.04045282,160.29,160.25,0.04445467]
[1762536114561,0.04045282,160.29,160.25,0.43445467]
[1762536114774,0.04045282,160.29,160.25,0.04445467]
[1762536115867,3.17045282,160.29,160.25,0.04445467]
[1762536117164,0.04045282,160.29,160.25,0.04445467]
[1762536117474,3.17045282,160.29,160.25,0.04445467]
[1762536117671,1.28045282,160.29,160.25,0.04445467]
[1762536117877,3.13,160.28,160.14,0.39]
[1762536118373,3.13,160.28,160.15,62.0]
[1762536118766,112.7958806,160.37,160.11,25.4398806]
[1762536118767,0.04084123,160.23,160.11,25.4398806]
[1762536118973,0.04047793,160.19,160.12,5.6242]
[1762536119168,0.04047793,160.19,160.11,25.4398806]
[1762536119364,0.04047793,160.19,160.11,25.8298806]
[1762536119569,0.04047793,160.19,160.14,5.6235]
[1762536119872,0.04047793,160.19,160.14,6.0135]
[1762536120171,0.04047793,160.19,160.03,11.2543]
[1762536120172,0.04047793,160.19,160.09,0.39]
[1762536120371,3.13,160.22,160.09,0.39]
[1762536120372,0.04573275,160.16,160.09,0.39]
[1762536121179,0.04573275,160.16,160.04,0.39]
[1762536121475,3.13,160.26,160.07,0.39]
[1762536121681,3.13,160.24,160.1,5.6249]
[1762536121973,3.13,160.24,160.07,0.39]
[1762536122172,3.01,160.18,160.04,5.6268]
[1762536122373,3.01,160.18,160.03,0.4]
[1762536122671,3.05204708,160.13,160.09,0.04372077]
[1762536122975,0.04527774,160.13,160.09,0.04303043]
[1762536123366,0.04527774,160.13,160.09,0.44303043]